[Event "WYCC 2018 G18"]
[Site "Halkidiki"]
[Date "2018.10.28"]
[Round "9"]
[White "Nguyen, Thi Minh Thu"]
[Black "Redondo Benavente, Ana"]
[Result "1-0"]
[ECO "E34"]
[WhiteElo "1849"]
[BlackElo "2055"]
[Annotator "NA"]
[PlyCount "155"]
[EventDate "2018.10.20"]
[EventType "swiss"]
[EventCountry "GRE"]
[SourceTitle "playchess.com"]
[Source "ChessBase"]
[SourceQuality "1"]
[TimeControl "40/5400+30:1800+30"]

1. d4 {[%emt 0:00:00]} Nf6 {[%emt 0:00:00]} 2. c4 {[%emt 0:00:00]} e6 {[%emt 0:00:00]} 3. Nc3 {[%emt 0:00:05]} Bb4 {[%emt 0:00:00]} 4. Qc2 {[%emt 0:00:13]} d5 {[%emt 0:00:00]} 5. e3 {[%emt 0:00:35]} O-O {[%emt 0:01:16]} 6. Nf3 {[%emt 0:00:19]} b6 {[%emt 0:00:29]} 7. Bd3 {[%emt 0:02:29]} dxc4 {[%emt 0:00:54]} 8. Bxc4 {[%emt 0:00:18]} Bb7 {[%emt 0:00:04]} 9. O-O {[%emt 0:00:54]} Nbd7 {[%emt 0:04:02]} 10. Rd1 {[%emt 0:02:03]} Bxc3 {[%emt 0:10:00]} 11. bxc3 {[%emt 0:00:28]} Qe7 {[%emt 0:04:22]} 12. a4 {[%emt 0:01:51]} Rfc8 {[%emt 0:00:49]} 13. Ba3 {[%emt 0:01:54]} Qe8 {[%emt 0:00:42]} 14. Qe2 {[%emt 0:07:01]} Ne4 {[%emt 0:04:27]} 15. Rac1 {[%emt 0:00:47]} a6 {[%emt 0:09:23]} 16. Ne1 {[%emt 0:10:36]} c5 {[%emt 0:05:42]} 17. f3 {[%emt 0:00:40]} Nef6 {[%emt 0:00:21]} 18. e4 {[%emt 0:01:44]} b5 {[%emt 0:03:21]} 19. Bb3 {[%emt 0:00:47]} c4 {[%emt 0:00:37]} 20. Bc2 {[%emt 0:00:12]} e5 {[%emt 0:05:15]} 21. d5 {[%emt 0:02:50]} Nc5 {[%emt 0:02:58]} 22. a5 {[%emt 0:00:38]} Qd8 {[%emt 0:03:40]} 23. Bb4 {[%emt 0:00:26]} Ncd7 {[%emt 0:04:28]} 24. g3 {[%emt 0:00:50]} Ne8 {[%emt 0:00:36]} 25. Ng2 {[%emt 0:01:06]} Nf8 {[%emt 0:08:31]} 26. Ne3 {[%emt 0:01:53]} Nd6 {[%emt 0:05:36]} 27. f4 {[%emt 0:04:09]} Ng6 {[%emt 0:02:55]} 28. Rf1 {[%emt 0:02:25]} Rc7 {[%emt 0:04:56]} 29. Rcd1 {[%emt 0:01:25]} Bc8 {[%emt 0:01:29]} 30. Nf5 {[%emt 0:03:02]} Ne8 {[%emt 0:01:59]} 31. d6 {[%emt 0:01:29]} Rca7 {[%emt 0:04:11]} 32. fxe5 {[%emt 0:04:02]} Be6 {[%emt 0:01:26]} 33. Rd5 {[%emt 0:02:45]} Qg5 {[%emt 0:05:09]} 34. Bc5 {[%emt 0:01:29]} Rd7 {[%emt 0:00:08]} 35. Be3 {[%emt 0:00:33]} Qd8 {[%emt 0:00:06]} 36. Bb6 {[%emt 0:00:50]} Qg5 {[%emt 0:00:04]} 37. Kh1 {[%emt 0:00:58]} h5 {[%emt 0:03:19]} 38. h4 {[%emt 0:01:33]} Qg4 {[%emt 0:00:24]} 39. Qxg4 {[%emt 0:00:22]} hxg4 {[%emt 0:00:01]} 40. Rc5 {[%emt 0:00:00]} Rb8 {[%emt 0:00:00]} 41. Nd4 {[%emt 0:01:37]} Nf8 {[%emt 0:07:35]} 42. Bd1 {[%emt 0:01:07]} g6 {[%emt 0:02:20]} 43. Nxe6 {[%emt 0:00:30]} Nxe6 {[%emt 0:00:07]} 44. Rd5 {[%emt 0:00:05]} Rc8 {[%emt 0:02:28]} 45. Bxg4 {[%emt 0:00:14]} N8g7 {[%emt 0:00:13]} 46. Kg2 {[%emt 0:01:33]} Rf8 {[%emt 0:03:50]} 47. Be3 {[%emt 0:01:47]} Rb7 {[%emt 0:00:13]} 48. d7 {[%emt 0:00:52]} b4 {[%emt 0:03:42]} 49. Bb6 {[%emt 0:00:13]} b3 {[%emt 0:01:05]} 50. Be2 {[%emt 0:00:25]} Rd8 {[%emt 0:04:49]} 51. Bxd8 {[%emt 0:01:31]} Nxd8 {[%emt 0:00:01]} 52. Bxc4 {[%emt 0:00:12]} Rc7 {[%emt 0:02:12]} 53. Bxb3 {[%emt 0:00:35]} Rxc3 {[%emt 0:00:01]} 54. Rf3 {[%emt 0:00:10]} Rc7 {[%emt 0:01:50]} 55. Rd6 {[%emt 0:00:08]} Nge6 {[%emt 0:00:05]} 56. Bxe6 {[%emt 0:00:22]} fxe6 {[%emt 0:00:06]} 57. Rb3 {[%emt 0:00:05]} Kf7 {[%emt 0:00:10]} 58. Rbb6 {[%emt 0:00:45]} Ke7 {[%emt 0:00:11]} 59. Rxa6 {[%emt 0:00:21]} Rc5 {[%emt 0:00:19]} 60. Rxe6+ {[%emt 0:00:33]} Nxe6 {[%emt 0:00:05]} 61. Rxe6+ {[%emt 0:00:04]} Kxd7 {[%emt 0:00:05]} 62. Rxg6 {[%emt 0:00:05]} Rxa5 {[%emt 0:00:02]} 63. Rg5 {[%emt 0:00:10]} Ke6 {[%emt 0:00:06]} 64. Kh3 {[%emt 0:00:05]} Ra4 {[%emt 0:00:07]} 65. h5 {[%emt 0:00:39]} Kf7 {[%emt 0:00:34]} 66. h6 {[%emt 0:00:23]} Ra1 {[%emt 0:01:00]} 67. Kg4 {[%emt 0:00:06]} Ra8 {[%emt 0:01:20]} 68. Rg7+ {[%emt 0:00:08]} Kf8 {[%emt 0:01:04]} 69. e6 {[%emt 0:00:08]} Ra4 {[%emt 0:00:37]} 70. Kf5 {[%emt 0:00:25]} Ra1 {[%emt 0:00:27]} 71. e7+ {[%emt 0:00:29]} Ke8 {[%emt 0:00:02]} 72. h7 {[%emt 0:00:07]} Rf1+ {[%emt 0:00:10]} 73. Kg6 {[%emt 0:00:08]} Rh1 {[%emt 0:00:28]} 74. Rg8+ {[%emt 0:00:04]} Kxe7 {[%emt 0:00:03]} 75. h8=Q {[%emt 0:00:07]} Rg1 {[%emt 0:00:15]} 76. Qf6+ {[%emt 0:00:06]} Kd7 {[%emt 0:00:04]} 77. Rg7+ {[%emt 0:00:06]} Ke8 {[%emt 0:00:08]} 78. Qe7# {[%emt 0:00:05]} 1-0

[Event "WYCC 2018 G18"]
[Site "Halkidiki"]
[Date "2018.10.28"]
[Round "9"]
[White "Perminaite, Guoda"]
[Black "Hrescak, Ivana"]
[Result "1/2-1/2"]
[ECO "B92"]
[WhiteElo "1840"]
[BlackElo "2173"]
[Annotator "NA"]
[PlyCount "115"]
[EventDate "2018.10.20"]
[EventType "swiss"]
[EventCountry "GRE"]
[SourceTitle "playchess.com"]
[Source "ChessBase"]
[SourceQuality "1"]
[TimeControl "40/5400+30:1800+30"]

1. e4 {[%emt 0:00:00]} c5 {[%emt 0:00:00]} 2. Nf3 {[%emt 0:00:00]} d6 {[%emt 0:00:00]} 3. d4 {[%emt 0:00:04]} cxd4 {[%emt 0:00:00]} 4. Nxd4 {[%emt 0:00:06]} Nf6 {[%emt 0:00:00]} 5. Nc3 {[%emt 0:00:13]} a6 {[%emt 0:00:01]} 6. Be2 {[%emt 0:00:28]} e5 {[%emt 0:00:06]} 7. Nf3 {[%emt 0:00:08]} h6 {[%emt 0:04:04]} 8. a4 {[%emt 0:03:35]} Be6 {[%emt 0:01:20]} 9. O-O {[%emt 0:01:44]} Be7 {[%emt 0:00:45]} 10. b3 {[%emt 0:05:34]} Nbd7 {[%emt 0:03:45]} 11. Bb2 {[%emt 0:04:59]} Rc8 {[%emt 0:02:27]} 12. Nd2 {[%emt 0:03:22]} O-O {[%emt 0:05:09]} 13. a5 {[%emt 0:13:42]} Nb8 {[%emt 0:12:21]} 14. Bc4 {[%emt 0:08:31]} Nc6 {[%emt 0:03:42]} 15. Bxe6 {[%emt 0:01:10]} fxe6 {[%emt 0:00:05]} 16. Nc4 {[%emt 0:00:11]} Qc7 {[%emt 0:00:47]} 17. Re1 {[%emt 0:02:53]} Rcd8 {[%emt 0:02:32]} 18. Qe2 {[%emt 0:06:59]} Rfe8 {[%emt 0:06:37]} 19. Nd1 {[%emt 0:16:18]} Bf8 {[%emt 0:06:43]} 20. f4 {[%emt 0:17:36]} exf4 {[%emt 0:03:15]} 21. Bxf6 {[%emt 0:04:15]} gxf6 {[%emt 0:00:08]} 22. Qg4+ {[%emt 0:00:13]} Bg7 {[%emt 0:01:44]} 23. Qxf4 {[%emt 0:01:05]} Nd4 {[%emt 0:03:03]} 24. Nde3 {[%emt 0:01:03]} Qc5 {[%emt 0:01:15]} 25. Qf2 {[%emt 0:03:22]} Kh8 {[%emt 0:07:05]} 26. Rad1 {[%emt 0:01:56]} Nc6 {[%emt 0:02:08]} 27. Ng4 {[%emt 0:01:16]} Qg5 {[%emt 0:03:20]} 28. h3 {[%emt 0:01:31]} h5 {[%emt 0:03:38]} 29. Nh2 {[%emt 0:00:12]} Bf8 {[%emt 0:00:51]} 30. Nf3 {[%emt 0:00:29]} Qf4 {[%emt 0:01:12]} 31. c3 {[%emt 0:01:20]} Be7 {[%emt 0:03:46]} 32. Nd4 {[%emt 0:00:58]} Qxf2+ 33. Kxf2 {[%emt 0:00:03]} Nxd4 {[%emt 0:02:06]} 34. cxd4 {[%emt 0:00:48]} d5 {[%emt 0:07:44]} 35. exd5 {[%emt 0:00:31]} exd5 {[%emt 0:00:14]} 36. Nb6 {[%emt 0:00:14]} Bb4 {[%emt 0:00:45]} 37. Rxe8+ {[%emt 0:00:27]} Rxe8 {[%emt 0:00:04]} 38. Nxd5 {[%emt 0:00:23]} Bxa5 {[%emt 0:00:06]} 39. Nf4 {[%emt 0:01:10]} Bb6 {[%emt 0:02:01]} 40. Kf3 {[%emt 0:00:00]} Kg8 {[%emt 0:00:00]} 41. Nxh5 {[%emt 0:01:46]} Kf7 {[%emt 0:08:54]} 42. Nf4 {[%emt 0:00:47]} Bc7 {[%emt 0:03:45]} 43. d5 {[%emt 0:02:42]} Bd6 {[%emt 0:00:09]} 44. Ne6 {[%emt 0:00:58]} Rc8 {[%emt 0:00:47]} 45. Rd3 {[%emt 0:00:37]} Be5 {[%emt 0:01:04]} 46. g4 {[%emt 0:01:36]} b5 {[%emt 0:01:52]} 47. Ke4 {[%emt 0:00:52]} Bd6 {[%emt 0:03:36]} 48. Rf3 {[%emt 0:02:54]} Rh8 {[%emt 0:04:11]} 49. g5 {[%emt 0:08:29]} Be7 {[%emt 0:02:17]} 50. Kf5 {[%emt 0:03:20]} fxg5 {[%emt 0:01:59]} 51. Nxg5+ {[%emt 0:00:20]} Ke8 {[%emt 0:02:27]} 52. Ne6 {[%emt 0:00:40]} Kd7 {[%emt 0:00:35]} 53. Rd3 {[%emt 0:01:22]} Rh5+ {[%emt 0:03:52]} 54. Ke4 {[%emt 0:02:27]} Rh4+ {[%emt 0:00:13]} 55. Kf5 {[%emt 0:01:03]} Rh5+ {[%emt 0:04:01]} 56. Kg4 {[%emt 0:02:50]} Rh4+ {[%emt 0:01:05]} 57. Kg3 {[%emt 0:00:51]} Rh5 {[%emt 0:00:56]} 58. Kg4 {[%emt 0:02:44]} 1/2-1/2

[Event "WYCC 2018 G18"]
[Site "Halkidiki"]
[Date "2018.10.28"]
[Round "9"]
[White "Manriquez Abarzua, Maria Belen"]
[Black "Simic, Anja"]
[Result "1/2-1/2"]
[ECO "B90"]
[WhiteElo "1630"]
[BlackElo "1813"]
[Annotator "NA"]
[PlyCount "87"]
[EventDate "2018.10.20"]
[EventType "swiss"]
[EventCountry "GRE"]
[SourceTitle "playchess.com"]
[Source "ChessBase"]
[SourceQuality "1"]
[TimeControl "40/5400+30:1800+30"]

1. e4 {[%emt 0:00:00]} c5 {[%emt 0:00:00]} 2. Nf3 {[%emt 0:00:00]} d6 {[%emt 0:00:00]} 3. d4 {[%emt 0:00:00]} cxd4 {[%emt 0:00:00]} 4. Nxd4 {[%emt 0:00:00]} Nf6 {[%emt 0:00:00]} 5. Nc3 {[%emt 0:00:00]} a6 {[%emt 0:00:00]} 6. Be3 {[%emt 0:00:00]} e5 {[%emt 0:00:03]} 7. Nb3 {[%emt 0:00:00]} Be6 {[%emt 0:00:06]} 8. Be2 {[%emt 0:01:05]} Be7 {[%emt 0:00:16]} 9. O-O {[%emt 0:00:08]} O-O {[%emt 0:00:16]} 10. f3 {[%emt 0:02:04]} Nbd7 {[%emt 0:02:22]} 11. Qd2 {[%emt 0:09:16]} b5 {[%emt 0:08:22]} 12. Kh1 {[%emt 0:10:57]} Nb6 {[%emt 0:09:37]} 13. Bg1 {[%emt 0:00:40]} Nc4 {[%emt 0:10:12]} 14. Qc1 {[%emt 0:00:44]} Nd7 {[%emt 0:21:18]} 15. Nd5 {[%emt 0:36:20]} Bxd5 {[%emt 0:07:22]} 16. exd5 {[%emt 0:00:08]} Bg5 {[%emt 0:03:33]} 17. Qb1 {[%emt 0:01:23]} Ne3 {[%emt 0:04:49]} 18. Re1 {[%emt 0:01:14]} Nxd5 {[%emt 0:05:00]} 19. Bd3 {[%emt 0:05:40]} Nf4 {[%emt 0:04:41]} 20. Bf1 {[%emt 0:03:44]} Qc7 {[%emt 0:04:35]} 21. Qd1 {[%emt 0:06:54]} Nc5 {[%emt 0:04:06]} 22. Nxc5 {[%emt 0:09:26]} dxc5 {[%emt 0:00:07]} 23. g3 {[%emt 0:00:29]} Ne6 {[%emt 0:00:27]} 24. Qe2 {[%emt 0:00:42]} Bf6 {[%emt 0:00:58]} 25. c3 {[%emt 0:01:30]} c4 {[%emt 0:02:11]} 26. Bg2 {[%emt 0:00:52]} Rad8 {[%emt 0:02:54]} 27. Qe3 {[%emt 0:02:39]} Rd3 {[%emt 0:01:07]} 28. Qe4 {[%emt 0:01:47]} Rfd8 {[%emt 0:03:56]} 29. Rab1 {[%emt 0:05:11]} g6 {[%emt 0:02:59]} 30. Bf1 {[%emt 0:00:43]} R3d7 {[%emt 0:01:09]} 31. Bh3 {[%emt 0:00:27]} Rd6 {[%emt 0:01:51]} 32. Bxe6 {[%emt 0:01:21]} Rxe6 {[%emt 0:00:14]} 33. Red1 {[%emt 0:00:10]} Red6 {[%emt 0:00:48]} 34. Re1 {[%emt 0:00:39]} Qc6 {[%emt 0:00:39]} 35. Qxc6 {[%emt 0:00:36]} Rxc6 {[%emt 0:00:04]} 36. Kg2 {[%emt 0:00:30]} Rd2+ {[%emt 0:01:01]} 37. Kf1 {[%emt 0:00:07]} Rcd6 {[%emt 0:00:32]} 38. Re2 {[%emt 0:00:39]} Rxe2 {[%emt 0:00:37]} 39. Kxe2 {[%emt 0:00:00]} Rd3 {[%emt 0:00:00]} 40. Be3 {[%emt 0:00:00]} Kf8 {[%emt 0:00:00]} 41. Ra1 {[%emt 0:00:53]} Rd5 {[%emt 0:12:05]} 42. a4 {[%emt 0:03:56]} Kg7 {[%emt 0:06:07]} 43. Bc1 {[%emt 0:01:54]} Bd8 {[%emt 0:05:21]} 44. axb5 {[%emt 0:03:03]} 1/2-1/2

[Event "WYCC 2018 G18"]
[Site "Halkidiki"]
[Date "2018.10.28"]
[Round "9"]
[White "Yurdakul, Didem Nuray"]
[Black "Mocanu, Valeria"]
[Result "0-1"]
[ECO "C54"]
[WhiteElo "1604"]
[BlackElo "1800"]
[Annotator "NA"]
[PlyCount "82"]
[EventDate "2018.10.20"]
[EventType "swiss"]
[EventCountry "GRE"]
[SourceTitle "playchess.com"]
[Source "ChessBase"]
[SourceQuality "1"]
[TimeControl "40/5400+30:1800+30"]

1. e4 {[%emt 0:00:00]} e5 {[%emt 0:00:00]} 2. Nf3 {[%emt 0:00:00]} Nc6 {[%emt 0:00:00]} 3. Bc4 {[%emt 0:00:00]} Bc5 {[%emt 0:00:00]} 4. c3 {[%emt 0:00:22]} Nf6 {[%emt 0:00:00]} 5. d4 {[%emt 0:00:06]} exd4 {[%emt 0:00:00]} 6. e5 {[%emt 0:00:56]} d5 {[%emt 0:00:02]} 7. Bb5 {[%emt 0:00:07]} Ne4 {[%emt 0:00:08]} 8. cxd4 {[%emt 0:00:10]} Bb6 {[%emt 0:00:09]} 9. h3 {[%emt 0:00:41]} O-O {[%emt 0:04:44]} 10. O-O {[%emt 0:01:40]} f6 {[%emt 0:23:12]} 11. Be3 {[%emt 0:20:25]} fxe5 {[%emt 0:07:41]} 12. Bxc6 {[%emt 0:00:07]} exd4 {[%emt 0:09:19]} 13. Bxd5+ {[%emt 0:16:35]} Qxd5 {[%emt 0:00:11]} 14. Nc3 {[%emt 0:00:12]} Nxc3 {[%emt 0:02:01]} 15. bxc3 {[%emt 0:00:27]} Bxh3 {[%emt 0:00:29]} 16. cxd4 {[%emt 0:13:49]} Rxf3 {[%emt 0:01:51]} 17. Qxf3 {[%emt 0:02:25]} Qxf3 {[%emt 0:00:07]} 18. gxf3 {[%emt 0:00:04]} Bxf1 {[%emt 0:00:05]} 19. Kxf1 {[%emt 0:00:04]} Rd8 {[%emt 0:02:46]} 20. Rd1 {[%emt 0:00:31]} Rd5 {[%emt 0:03:12]} 21. Ke2 {[%emt 0:00:41]} h5 {[%emt 0:09:12]} 22. f4 {[%emt 0:01:35]} Kf7 {[%emt 0:00:59]} 23. Kd3 {[%emt 0:01:59]} Kf6 {[%emt 0:13:22]} 24. f3 {[%emt 0:08:19]} c6 {[%emt 0:03:10]} 25. a3 {[%emt 0:05:44]} g6 {[%emt 0:01:37]} 26. Ke4 {[%emt 0:02:44]} Ra5 {[%emt 0:03:49]} 27. Bc1 {[%emt 0:00:26]} Ra4 {[%emt 0:01:10]} 28. Ke3 {[%emt 0:00:38]} Kf5 {[%emt 0:01:03]} 29. Bb2 {[%emt 0:00:21]} Bc7 {[%emt 0:00:46]} 30. d5 {[%emt 0:02:45]} Bxf4+ {[%emt 0:00:27]} 31. Kf2 {[%emt 0:00:20]} cxd5 {[%emt 0:08:30]} 32. Rxd5+ {[%emt 0:00:06]} Ke6 {[%emt 0:00:05]} 33. Rd8 {[%emt 0:01:50]} Rc4 {[%emt 0:01:21]} 34. Re8+ {[%emt 0:00:20]} Kf7 {[%emt 0:00:13]} 35. Re2 {[%emt 0:00:07]} b5 {[%emt 0:01:31]} 36. Be5 {[%emt 0:02:26]} Bxe5 {[%emt 0:00:27]} 37. Rxe5 {[%emt 0:00:08]} a6 {[%emt 0:00:16]} 38. Re3 {[%emt 0:01:07]} Kf6 {[%emt 0:00:31]} 39. Rd3 {[%emt 0:00:23]} Rc6 {[%emt 0:01:53]} 40. Kg3 {[%emt 0:00:00]} a5 {[%emt 0:00:00]} 41. Rd5 {[%emt 0:07:20]} Rb6 {[%emt 0:10:10]} 0-1

[Event "WYCC 2018 G18"]
[Site "Halkidiki"]
[Date "2018.10.28"]
[Round "9"]
[White "Ramirez Toledo, Ayleen Maribel"]
[Black "Perry, Tal"]
[Result "1-0"]
[ECO "D02"]
[WhiteElo "1545"]
[BlackElo "1702"]
[Annotator "NA"]
[PlyCount "91"]
[EventDate "2018.10.20"]
[EventType "swiss"]
[EventCountry "GRE"]
[SourceTitle "playchess.com"]
[Source "ChessBase"]
[SourceQuality "1"]
[TimeControl "40/5400+30:1800+30"]

1. Nf3 {[%emt 0:02:29]} d5 {[%emt 0:00:00]} 2. d4 {[%emt 0:00:32]} Nf6 {[%emt 0:00:00]} 3. g3 {[%emt 0:00:04]} Bf5 {[%emt 0:00:00]} 4. Bg2 {[%emt 0:00:05]} e6 {[%emt 0:00:08]} 5. c4 {[%emt 0:00:41]} c6 {[%emt 0:00:47]} 6. Qb3 {[%emt 0:01:20]} Qb6 {[%emt 0:06:23]} 7. O-O {[%emt 0:03:18]} Qxb3 {[%emt 0:02:04]} 8. axb3 {[%emt 0:00:02]} Bc2 {[%emt 0:00:36]} 9. Nfd2 {[%emt 0:16:28]} Bb4 {[%emt 0:02:21]} 10. Na3 {[%emt 0:02:58]} Bg6 {[%emt 0:01:24]} 11. Nf3 {[%emt 0:06:48]} Nbd7 {[%emt 0:01:07]} 12. Bd2 {[%emt 0:04:53]} Bxd2 {[%emt 0:01:35]} 13. Nxd2 {[%emt 0:00:02]} O-O {[%emt 0:00:26]} 14. Nab1 {[%emt 0:06:55]} Nb6 {[%emt 0:05:34]} 15. Nc3 {[%emt 0:01:50]} Rfd8 {[%emt 0:02:49]} 16. c5 {[%emt 0:10:42]} Nbd7 {[%emt 0:00:42]} 17. b4 {[%emt 0:05:54]} e5 {[%emt 0:02:35]} 18. dxe5 {[%emt 0:05:00]} Nxe5 {[%emt 0:00:05]} 19. b5 {[%emt 0:00:53]} a6 {[%emt 0:27:29]} 20. bxa6 {[%emt 0:01:00]} bxa6 {[%emt 0:00:21]} 21. Ra3 {[%emt 0:03:52]} Rdb8 {[%emt 0:02:40]} 22. Na4 {[%emt 0:11:46]} Ned7 {[%emt 0:01:08]} 23. Rfa1 {[%emt 0:02:04]} Bc2 {[%emt 0:03:49]} 24. b3 {[%emt 0:00:23]} Bg6 {[%emt 0:16:57]} 25. h3 {[%emt 0:03:38]} h6 {[%emt 0:00:11]} 26. g4 {[%emt 0:00:55]} Re8 {[%emt 0:01:58]} 27. Kf1 {[%emt 0:00:54]} Rab8 {[%emt 0:00:56]} 28. Rc1 {[%emt 0:01:16]} Rb5 {[%emt 0:00:59]} 29. Raa1 {[%emt 0:03:12]} a5 {[%emt 0:01:29]} 30. Ra3 {[%emt 0:01:52]} h5 {[%emt 0:05:56]} 31. g5 {[%emt 0:01:09]} Ne4 {[%emt 0:00:11]} 32. Nxe4 {[%emt 0:01:12]} Bxe4 {[%emt 0:00:11]} 33. Bxe4 {[%emt 0:01:02]} dxe4 {[%emt 0:00:02]} 34. h4 {[%emt 0:00:37]} Re5 {[%emt 0:00:40]} 35. Rc4 {[%emt 0:01:07]} e3 {[%emt 0:04:40]} 36. f4 {[%emt 0:00:31]} Rf5 {[%emt 0:01:09]} 37. Kg2 {[%emt 0:00:26]} Rb4 {[%emt 0:02:04]} 38. Kf3 {[%emt 0:00:33]} Ne5+ {[%emt 0:02:53]} 39. Ke4 {[%emt 0:00:01]} Nxc4 {[%emt 0:00:13]} 40. bxc4 {[%emt 0:00:00]} Rd5 {[%emt 0:00:00]} 41. Kxe3 {[%emt 0:02:28]} Rd1 {[%emt 0:02:08]} 42. Nb6 {[%emt 0:06:34]} Rh1 {[%emt 0:00:46]} 43. Rxa5 {[%emt 0:00:39]} Rxh4 {[%emt 0:01:42]} 44. Nd7 {[%emt 0:04:04]} f6 {[%emt 0:06:47]} 45. g6 {[%emt 0:00:54]} Rh3+ {[%emt 0:01:48]} 46. Kf2 {[%emt 0:03:52]} 1-0

[Event "WYCC 2018 G18"]
[Site "Halkidiki"]
[Date "2018.10.28"]
[Round "9"]
[White "Booysen, Elda"]
[Black "Abeysinghe, H M H Janandani"]
[Result "0-1"]
[ECO "B70"]
[WhiteElo "1452"]
[BlackElo "1698"]
[Annotator "NA"]
[PlyCount "120"]
[EventDate "2018.10.20"]
[EventType "swiss"]
[EventCountry "GRE"]
[SourceTitle "playchess.com"]
[Source "ChessBase"]
[SourceQuality "1"]
[TimeControl "40/5400+30:1800+30"]

1. e4 {[%emt 0:00:00]} c5 {[%emt 0:00:00]} 2. Nf3 {[%emt 0:00:00]} d6 {[%emt 0:00:00]} 3. d4 {[%emt 0:00:01]} cxd4 {[%emt 0:00:20]} 4. Nxd4 {[%emt 0:00:05]} Nf6 {[%emt 0:00:20]} 5. Nc3 {[%emt 0:01:05]} g6 {[%emt 0:00:19]} 6. Be2 {[%emt 0:02:41]} Bg7 {[%emt 0:01:40]} 7. O-O {[%emt 0:00:31]} O-O {[%emt 0:00:20]} 8. Be3 {[%emt 0:00:35]} Nc6 {[%emt 0:00:19]} 9. f3 {[%emt 0:10:12]} Qb6 {[%emt 0:06:28]} 10. a3 {[%emt 0:04:19]} Ng4 11. fxg4 {[%emt 0:07:53]} Bxd4 {[%emt 0:03:33]} 12. Bxd4 {[%emt 0:00:29]} Qxd4+ {[%emt 0:00:05]} 13. Kh1 {[%emt 0:03:32]} Be6 {[%emt 0:00:43]} 14. Qc1 {[%emt 0:13:42]} Ne5 {[%emt 0:03:17]} 15. h3 {[%emt 0:05:29]} Rac8 {[%emt 0:01:15]} 16. Qg5 {[%emt 0:09:11]} f6 {[%emt 0:02:06]} 17. Qf4 {[%emt 0:01:20]} g5 {[%emt 0:02:39]} 18. Qg3 {[%emt 0:01:32]} Qd2 {[%emt 0:02:23]} 19. Rf2 {[%emt 0:03:22]} Qd4 {[%emt 0:01:42]} 20. Rd1 {[%emt 0:01:55]} Qb6 {[%emt 0:00:50]} 21. Na4 {[%emt 0:00:43]} Qa5 {[%emt 0:01:04]} 22. Nc3 {[%emt 0:00:10]} a6 {[%emt 0:00:35]} 23. h4 {[%emt 0:03:53]} h6 {[%emt 0:00:24]} 24. hxg5 {[%emt 0:00:42]} hxg5 {[%emt 0:00:33]} 25. Nd5 {[%emt 0:01:04]} Bxd5 {[%emt 0:00:33]} 26. exd5 {[%emt 0:06:30]} Rxc2 {[%emt 0:02:12]} 27. Bd3 {[%emt 0:05:17]} Rxf2 {[%emt 0:00:49]} 28. Qxf2 {[%emt 0:00:16]} Kg7 {[%emt 0:00:48]} 29. Bf5 {[%emt 0:01:03]} Rh8+ {[%emt 0:00:19]} 30. Kg1 {[%emt 0:00:06]} Qa4 {[%emt 0:00:19]} 31. Rd4 {[%emt 0:03:57]} Qb3 {[%emt 0:00:40]} 32. Rd2 {[%emt 0:01:43]} Qc4 {[%emt 0:00:39]} 33. Qd4 {[%emt 0:01:07]} Qb3 {[%emt 0:04:01]} 34. Qc3 {[%emt 0:02:55]} Qxc3 {[%emt 0:00:59]} 35. bxc3 {[%emt 0:00:05]} Nc4 {[%emt 0:00:27]} 36. Re2 {[%emt 0:00:31]} Kf8 {[%emt 0:00:59]} 37. a4 {[%emt 0:00:29]} Nb6 {[%emt 0:02:06]} 38. Be6 {[%emt 0:04:17]} Nxa4 {[%emt 0:01:16]} 39. c4 {[%emt 0:01:02]} Nc5 {[%emt 0:00:24]} 40. Bf5 {[%emt 0:00:00]} Kf7 {[%emt 0:00:00]} 41. g3 {[%emt 0:05:48]} b5 {[%emt 0:00:42]} 42. cxb5 {[%emt 0:00:47]} axb5 {[%emt 0:00:05]} 43. Rb2 {[%emt 0:00:08]} Rb8 {[%emt 0:00:58]} 44. Rh2 {[%emt 0:00:50]} Rb7 {[%emt 0:00:48]} 45. Bc8 {[%emt 0:03:45]} Rc7 {[%emt 0:00:33]} 46. Bf5 {[%emt 0:00:08]} b4 {[%emt 0:00:35]} 47. Rh7+ {[%emt 0:02:45]} Kg8 {[%emt 0:00:16]} 48. Rh2 {[%emt 0:00:08]} b3 {[%emt 0:00:16]} 49. Rb2 {[%emt 0:03:57]} Ra7 {[%emt 0:00:09]} 50. Bb1 {[%emt 0:00:54]} Ra4 {[%emt 0:00:30]} 51. Kf2 {[%emt 0:07:28]} Rxg4 {[%emt 0:00:38]} 52. Kf3 {[%emt 0:00:39]} Rb4 {[%emt 0:00:04]} 53. Re2 {[%emt 0:08:28]} Rb7 {[%emt 0:00:54]} 54. Kg4 {[%emt 0:01:27]} Na4 {[%emt 0:00:35]} 55. Kf5 {[%emt 0:03:18]} Nc3 {[%emt 0:00:23]} 56. Rh2 {[%emt 0:01:10]} Nxb1 {[%emt 0:02:51]} 57. Kg6 {[%emt 0:00:10]} Na3 {[%emt 0:00:51]} 58. Rh7 {[%emt 0:02:17]} b2 {[%emt 0:00:48]} 59. Rg7+ {[%emt 0:00:53]} Kf8 {[%emt 0:00:09]} 60. Rh7 {[%emt 0:00:12]} Ke8 0-1

[Event "WYCC 2018 G18"]
[Site "Halkidiki"]
[Date "2018.10.29"]
[Round "10"]
[White "Sargsyan, Anna M."]
[Black "Antolak, Julia"]
[Result "0-1"]
[ECO "A46"]
[WhiteElo "2331"]
[BlackElo "2240"]
[Annotator "NA"]
[PlyCount "40"]
[EventDate "2018.10.20"]
[EventType "swiss"]
[EventCountry "GRE"]
[SourceTitle "playchess.com"]
[Source "ChessBase"]
[SourceQuality "1"]
[TimeControl "40/5400+30:1800+30"]

1. d4 {[%emt 0:00:00]} Nf6 {[%emt 0:00:00]} 2. Nf3 {[%emt 0:00:00]} e6 {[%emt 0:00:00]} 3. e3 {[%emt 0:00:41]} b6 {[%emt 0:00:23]} 4. Bd3 {[%emt 0:00:05]} Bb7 {[%emt 0:00:12]} 5. O-O {[%emt 0:00:07]} Be7 {[%emt 0:00:34]} 6. c4 {[%emt 0:00:04]} c5 {[%emt 0:00:14]} 7. Nc3 {[%emt 0:00:04]} cxd4 {[%emt 0:00:13]} 8. exd4 {[%emt 0:00:02]} d5 {[%emt 0:00:42]} 9. cxd5 {[%emt 0:00:05]} Nxd5 {[%emt 0:00:07]} 10. Ne5 {[%emt 0:00:04]} O-O {[%emt 0:01:25]} 11. Qh5 {[%emt 0:00:03]} g6 {[%emt 0:00:32]} 12. Qe2 {[%emt 0:01:26]} Nc6 {[%emt 0:02:05]} 13. Bh6 {[%emt 0:05:18]} Nxd4 {[%emt 0:30:23]} 14. Qe4 {[%emt 0:10:12]} Bc5 {[%emt 0:25:57]} 15. Bxf8 {[%emt 0:01:45]} f5 {[%emt 0:00:13]} 16. Qe1 $19 {[%emt 0:02:48]} (16. Be7 $1 $15 fxe4 17. Bxd8 exd3 18. Bg5) 16... Nf4 {[%emt 0:03:59]} 17. Bh6 {[%emt 0:21:00]} Nxg2 {[%emt 0:00:42]} 18. Qc1 {[%emt 0:11:10]} Qc7 {[%emt 0:08:25]} 19. Nb5 {[%emt 0:06:11]} Qxe5 {[%emt 0:02:09]} 20. Nxd4 {[%emt 0:00:19]} Bxd4 {[%emt 0:01:30]} 0-1